fUST/lending_fUST_20240919
["ID","MTS","AMOUNT","RATE_DAILY","PERIOD"]
[338477643,1726687835500,-848.208813,0.00019168,2]
[338477644,1726687835509,-848.208813,0.00019168,2]
[338477645,1726687835522,-151.0,0.00019168,2]
[338477646,1726687835531,-2551.182283,0.00019168,2]
[338477647,1726687835540,-2551.182283,0.00019168,2]
[338477648,1726687835551,-2848.442447,0.00019168,2]
[338477649,1726687835560,-151.0,0.00019168,2]
[338477650,1726687835569,-151.0,0.00019168,2]
[338477651,1726687835578,-5000.0,0.00019168,2]
[338477652,1726687835588,-5000.0,0.00019168,2]
[338477653,1726687835598,-151.0,0.00019168,2]
[338477654,1726687835608,-3615.322801,0.00019168,2]
[338477655,1726687835617,-2848.442447,0.00019168,2]
[338477656,1726687835627,-151.0,0.00019168,2]
[338477657,1726687835636,-246.832482,0.00019168,2]
[338477658,1726687835645,-863.741807,0.00019168,2]
[338477659,1726687835655,-246.832482,0.00019168,2]
[338477660,1726687835664,-863.741807,0.00019168,2]
[338477661,1726687835674,-151.0,0.00019168,2]
[338477662,1726687835683,-151.0,0.00019168,2]
[338477663,1726687835693,-151.0,0.00019168,2]
[338477664,1726687835702,-151.0,0.00019168,2]
[338477665,1726687835711,-923.733102,0.00019168,2]
[338477666,1726687835720,-923.733102,0.00019168,2]
[338477667,1726687835730,-500.413116,0.00019168,2]
[338477668,1726687835740,-500.413116,0.00019168,2]
[338477669,1726687835750,-151.0,0.00019168,2]
[338477670,1726687835759,-500.413116,0.00019168,2]
[338477671,1726687835928,-500.413116,0.00019168,2]
[338477672,1726687835939,-184.381574,0.00019168,2]
[338477673,1726687835948,-184.381574,0.00019168,2]
[338477674,1726687835957,-151.0,0.00019168,2]
[338477675,1726687835967,-184.381574,0.00019168,2]
[338477676,1726687835977,-184.381574,0.00019168,2]
[338477677,1726687835986,-282.399696,0.00019168,2]
[338477678,1726687835996,-282.399696,0.00019168,2]
[338477679,1726687836005,-151.0,0.00019168,2]
[338477680,1726687836015,-282.399696,0.00019168,2]
[338477681,1726687836025,-282.399696,0.00019168,2]
[338477682,1726687836034,-608.980635,0.00019168,2]
[338477683,1726687836044,-608.980635,0.00019168,2]
[338477684,1726687836057,-662.708753,0.00019168,2]
[338477685,1726687836067,-662.708753,0.00019168,2]
[338477686,1726687836076,-151.0,0.00019168,2]
[338477687,1726687836085,-151.0,0.00019168,2]
[338477688,1726687836094,-175.323761,0.00019168,2]
[338477689,1726687836104,-175.323761,0.00019168,2]
[338477690,1726687836113,-3000.0,0.0001917,2]
[338477691,1726687836123,-327.0,0.0001917,2]
[338477692,1726687836134,-403.11831941,0.0001917,2]
[338477693,1726687836145,-37857.08079212,0.00019172,5]
[338477694,1726687836154,-288.2482218,0.00019173,2]
[338477695,1726687836163,-500.45897975,0.00019173,2]
[338477696,1726687836173,-500.0,0.00019173,2]
[338477697,1726687836182,-500.0,0.00019173,2]
[338477698,1726687836191,-500.0,0.00019173,2]
[338477699,1726687836200,-333.06869054,0.00019173,2]
[338477700,1726687836210,-500.0,0.00019173,2]
[338477701,1726687836220,-500.0,0.00019173,2]
[338477702,1726687836229,-500.0,0.00019173,2]
[338477703,1726687836239,-500.0,0.00019173,2]
[338477704,1726687836248,-500.0,0.00019173,2]
[338477705,1726687836257,-500.0,0.00019173,2]
[338477706,1726687836274,-500.0,0.00019173,2]
[338477707,1726687836284,-500.0,0.00019173,2]
[338477708,1726687836294,-284.86025039,0.00019173,2]
[338477709,1726687836303,-500.0,0.00019173,2]
[338477710,1726687836312,-500.0,0.00019173,2]
[338477711,1726687836321,-500.0,0.00019173,2]
[338477712,1726687836331,-500.0,0.00019173,2]
[338477713,1726687836340,-500.0,0.00019173,2]
[338477714,1726687836349,-500.0,0.00019173,2]
[338477715,1726687836358,-500.0,0.00019173,2]
[338477716,1726687836367,-150.01,0.00019177,2]
[338477717,1726687836376,-12064.83262104,0.00019177,2]
[338477718,1726687836385,-305.00861138,0.00019177,2]
[338477719,1726687836394,-160.0,0.00019177,2]
[338477720,1726687836403,-160.0,0.00019177,2]
[338477721,1726687836412,-160.0,0.00019177,2]
[338477722,1726687836422,-160.0,0.00019177,2]
[338477723,1726687836431,-160.0,0.00019177,2]
[338477724,1726687836441,-500.0,0.00019178,2]
[338477725,1726687836451,-500.0,0.00019178,2]
[338477726,1726687836460,-500.0,0.00019178,2]
[338477727,1726687836469,-537.25,0.00019178,2]
[338477728,1726687836478,-500.0,0.00019178,2]
[338477729,1726687836488,-500.0,0.00019178,2]
[338477730,1726687836497,-500.0,0.00019178,2]
[338477731,1726687836507,-661.32,0.00019178,2]
[338477732,1726687836519,-500.0,0.00019178,2]
[338477733,1726687836529,-500.0,0.00019178,2]
[338477734,1726687836538,-500.0,0.00019178,2]
[338477735,1726687836547,-1288.82,0.00019178,2]
[338477736,1726687836556,-151.0,0.00019178,2]
[338477737,1726687836565,-151.0,0.00019178,2]
[338477738,1726687836575,-151.0,0.00019178,2]
[338477739,1726687836584,-500.0,0.00019178,2]
[338477740,1726687836593,-151.0,0.00019178,2]
[338477741,1726687836603,-151.0,0.00019178,2]
[338477742,1726687836613,-151.0,0.00019178,2]
[338477743,1726687836623,-1543.2,0.00019178,2]
[338477744,1726687836632,-151.0,0.00019178,2]
[338477745,1726687836642,-151.0,0.00019178,2]
[338477746,1726687836652,-151.0,0.00019178,2]
[338477747,1726687836661,-517.57497821,0.00019178,2]
[338477748,1726687836670,-500.0,0.00019178,2]
[338477749,1726687836680,-1332.76,0.00019178,2]
[338477750,1726687836689,-500.0,0.00019178,2]
[338477751,1726687836699,-987.01,0.00019178,2]
[338477752,1726687836708,-500.0,0.00019178,2]
[338477753,1726687836717,-500.0,0.00019178,2]
[338477754,1726687836727,-1754.07,0.00019178,2]
[338477755,1726687836736,-151.0,0.00019178,2]
[338477756,1726687836746,-151.0,0.00019178,2]
[338477757,1726687836755,-151.0,0.00019178,2]
[338477758,1726687836767,-151.0,0.00019178,2]
[338477759,1726687836778,-151.0,0.00019178,2]
[338477760,1726687836787,-151.0,0.00019178,2]
[338477761,1726687836796,-569.42855108,0.00019178,2]
[338477762,1726687836806,-151.0,0.00019178,2]
[338477763,1726687836815,-1601.41,0.00019178,2]
[338477764,1726687836825,-151.0,0.00019178,2]
[338477765,1726687836835,-151.0,0.00019178,2]
[338477766,1726687836844,-1625.8,0.00019178,2]
[338477767,1726687836853,-151.0,0.00019178,2]
[338477768,1726687836863,-154.139077,0.00019178,2]
[338477769,1726687836873,-1723.25,0.00019178,2]
[338477770,1726687836883,-500.0,0.00019178,2]
[338477771,1726687836893,-500.0,0.00019178,2]
[338477772,1726687836903,-500.0,0.00019178,2]
[338477773,1726687836913,-500.0,0.00019178,2]
[338477774,1726687836923,-151.0,0.00019178,2]
[338477775,1726687836933,-151.0,0.00019178,2]
[338477776,1726687836943,-151.0,0.00019178,2]
[338477777,1726687836953,-363.54165589,0.00019178,2]
[338477778,1726687837410,-136.45834411,0.00019178,2]
[338477779,1726687837420,-500.0,0.00019178,2]
[338477780,1726687837429,-500.0,0.00019178,2]
[338477781,1726687837439,-500.0,0.00019178,2]
[338477782,1726687837448,-500.0,0.00019178,2]
[338477783,1726687837458,-151.0,0.00019178,2]
[338477784,1726687837467,-151.0,0.00019178,2]
[338477785,1726687837476,-190.795562,0.00019178,2]
[338477786,1726687837486,-695.07,0.00019178,2]
[338477787,1726687837495,-154.795383,0.00019178,2]
[338477788,1726687837505,-500.0,0.00019178,2]
[338477789,1726687837517,-500.0,0.00019178,2]
[338477790,1726687837527,-500.0,0.00019178,2]
[338477791,1726687837537,-500.0,0.00019178,2]
[338477792,1726687837547,-734.08,0.00019178,2]
[338477793,1726687837556,-500.0,0.00019178,2]
[338477794,1726687837565,-151.0,0.00019178,2]
[338477795,1726687837575,-151.0,0.00019178,2]
[338477796,1726687837585,-1308.43,0.00019178,2]
[338477797,1726687837594,-500.0,0.00019178,2]
[338477798,1726687837604,-151.0,0.00019178,2]
[338477799,1726687837613,-2090.88,0.00019178,2]
[338477800,1726687837622,-151.0,0.00019178,2]
[338477801,1726687837631,-151.0,0.00019178,2]
[338477802,1726687837641,-500.0,0.00019178,2]
[338477803,1726687837650,-151.0,0.00019178,2]
[338477804,1726687837660,-500.0,0.00019178,2]
[338477805,1726687837670,-1018.96,0.00019178,2]
[338477806,1726687837683,-1736.61,0.00019178,2]
[338477807,1726687837693,-1468.28,0.00019178,2]
[338477808,1726687837703,-592.61,0.00019178,2]
[338477809,1726687837713,-500.0,0.00019178,2]
[338477810,1726687837722,-500.0,0.00019178,2]
[338477811,1726687837732,-500.0,0.00019178,2]
[338477812,1726687837741,-500.0,0.00019178,2]
[338477813,1726687837750,-500.0,0.00019178,2]
[338477814,1726687837760,-500.0,0.00019178,2]
[338477815,1726687837777,-500.0,0.00019178,2]
[338477816,1726687837787,-1471.43,0.00019178,2]
[338477817,1726687837796,-500.0,0.00019178,2]
[338477818,1726687837806,-500.0,0.00019178,2]
[338477819,1726687837815,-500.0,0.00019178,2]
[338477820,1726687837824,-2041.71,0.00019178,2]
[338477821,1726687837833,-661.61,0.00019178,2]
[338477822,1726687837843,-744.89,0.00019178,2]
[338477823,1726687837852,-500.0,0.00019178,2]
[338477824,1726687837861,-500.0,0.00019178,2]
[338477825,1726687837870,-915.55,0.00019178,2]
[338477826,1726687837880,-671.94,0.00019178,2]
[338477827,1726687837889,-151.0,0.00019178,2]
[338477828,1726687837899,-500.0,0.00019178,2]
[338477829,1726687837908,-151.0,0.00019178,2]
[338477830,1726687837918,-500.0,0.00019178,2]
[338477831,1726687837928,-500.0,0.00019178,2]
[338477832,1726687837938,-500.0,0.00019178,2]
[338477833,1726687837947,-500.0,0.00019178,2]
[338477834,1726687837957,-747.09,0.00019178,2]
[338477835,1726687837966,-500.0,0.00019178,2]
[338477836,1726687837975,-500.0,0.00019178,2]
[338477837,1726687837984,-788.71,0.00019178,2]
[338477838,1726687837994,-500.0,0.00019178,2]
[338477839,1726687838003,-525.4,0.00019178,2]
[338477840,1726687838016,-616.72,0.00019178,2]
[338477841,1726687838025,-1134.81,0.00019178,2]
[338477842,1726687838035,-500.0,0.00019178,2]
[338477843,1726687838049,-500.0,0.00019178,2]
[338477844,1726687838059,-500.0,0.00019178,2]
[338477845,1726687838068,-500.0,0.00019178,2]
[338477846,1726687838077,-500.0,0.00019178,2]
[338477847,1726687838087,-1268.02,0.00019178,2]
[338477849,1726687838096,-500.0,0.00019178,2]
[338477850,1726687838105,-500.0,0.00019178,2]
[338477851,1726687838114,-500.0,0.00019178,2]
[338477852,1726687838124,-500.0,0.00019178,2]
[338477853,1726687838134,-500.0,0.00019178,2]
[338477854,1726687838145,-1119.6,0.00019178,2]
[338477856,1726687838155,-151.0,0.00019178,2]
[338477857,1726687838165,-264.061443,0.00019178,2]
[338477858,1726687838174,-334.16401562,0.00019178,2]
[338477859,1726687838184,-1118.28,0.00019178,2]
[338477860,1726687838194,-500.0,0.00019178,2]
[338477861,1726687838391,-500.0,0.00019178,2]
[338477862,1726687838402,-151.0,0.00019178,2]
[338477863,1726687838413,-151.0,0.00019178,2]
[338477864,1726687838423,-151.0,0.00019178,2]
[338477865,1726687838433,-151.0,0.00019178,2]
[338477866,1726687838443,-500.0,0.00019178,2]
[338477867,1726687838452,-586.29,0.00019178,2]
[338477868,1726687838462,-500.0,0.00019178,2]
[338477869,1726687838471,-500.0,0.00019178,2]
[338477870,1726687838481,-500.0,0.00019178,2]
[338477871,1726687838491,-151.0,0.00019178,2]
[338477872,1726687838501,-151.0,0.00019178,2]
[338477873,1726687838510,-500.0,0.00019178,2]
[338477874,1726687838522,-500.0,0.00019178,2]
[338477875,1726687838532,-500.0,0.00019178,2]
[338477877,1726687838543,-300.49662093,0.00019178,2]
[338477878,1726687838553,-295.56,0.00019178,2]
[338477880,1726687838562,-151.0,0.00019178,2]
[338477881,1726687838571,-500.53,0.00019178,2]
[338477882,1726687838581,-500.0,0.00019178,2]
[338477883,1726687838590,-1055.5,0.00019178,2]
[338477884,1726687838599,-500.0,0.00019178,2]
[338477885,1726687838609,-500.0,0.00019178,2]
[338477886,1726687838619,-500.0,0.00019178,2]
[338477887,1726687838629,-500.0,0.00019178,2]
[338477888,1726687838638,-500.0,0.00019178,2]
[338477889,1726687838647,-500.0,0.00019178,2]
[338477890,1726687838657,-500.0,0.00019178,2]
[338477891,1726687838667,-500.0,0.00019178,2]
[338477892,1726687838676,-872.82,0.00019178,2]
[338477893,1726687838686,-894.56,0.00019178,2]
[338477894,1726687838695,-561.37,0.00019178,2]
[338477896,1726687838704,-500.0,0.00019178,2]
[338477898,1726687838714,-575.89,0.00019178,2]
[338477900,1726687838723,-500.0,0.00019178,2]
[338477901,1726687838732,-500.0,0.00019178,2]
[338477903,1726687838742,-500.0,0.00019178,2]
[338477904,1726687838752,-500.0,0.00019178,2]
[338477906,1726687838761,-500.0,0.00019178,2]
[338477908,1726687838772,-500.0,0.00019178,2]
[338477910,1726687838781,-500.0,0.00019178,2]
[338477911,1726687838790,-1023.61,0.00019178,2]
[338477912,1726687838799,-500.0,0.00019178,2]
[338477914,1726687838810,-544.99,0.00019178,2]
[338477916,1726687838820,-500.0,0.00019178,2]
[338477918,1726687838829,-525.92,0.00019178,2]
[338477920,1726687838839,-500.0,0.00019178,2]
[338477921,1726687838848,-500.0,0.00019178,2]
[338477922,1726687838857,-151.0,0.00019178,2]
[338477923,1726687838867,-500.0,0.00019178,2]
[338477924,1726687838876,-151.0,0.00019178,2]
[338477925,1726687838886,-500.0,0.00019178,2]
[338477926,1726687838898,-500.0,0.00019178,2]
[338477927,1726687838907,-500.0,0.00019178,2]
[338477928,1726687838917,-500.0,0.00019178,2]
[338477929,1726687838926,-500.0,0.00019178,2]
[338477930,1726687838936,-500.0,0.00019178,2]
[338477931,1726687838945,-1028.34,0.00019178,2]
[338477932,1726687838955,-555.20290379,0.00019178,2]
[338477933,1726687838965,-502.21,0.00019178,2]
[338477934,1726687838974,-500.0,0.00019178,2]
[338477936,1726687838984,-679.35,0.00019178,2]
[338477938,1726687838993,-500.0,0.00019178,2]
[338477939,1726687839003,-500.0,0.00019178,2]
[338477941,1726687839016,-1035.2,0.00019178,2]
[338477942,1726687839026,-500.0,0.00019178,2]
[338477943,1726687839035,-788.27,0.00019178,2]
[338477944,1726687839044,-500.0,0.00019178,2]
[338477945,1726687839056,-151.0,0.00019178,2]
[338477946,1726687839065,-607.21,0.00019178,2]
[338477947,1726687839074,-151.0,0.00019178,2]
[338477948,1726687839083,-151.0,0.00019178,2]
[338477949,1726687839092,-151.0,0.00019178,2]
[338477950,1726687839101,-151.0,0.00019178,2]
[338477951,1726687839110,-151.0,0.00019178,2]
[338477952,1726687839120,-151.0,0.00019178,2]
[338477953,1726687839129,-151.0,0.00019178,2]
[338477954,1726687839139,-500.0,0.00019178,2]
[338477955,1726687839148,-151.0,0.00019178,2]
[338477956,1726687839158,-151.0,0.00019178,2]
[338477957,1726687839179,-200.300713,0.00019178,2]
[338477958,1726687839189,-1981.22,0.00019178,2]
[338477959,1726687839198,-151.0,0.00019178,2]
[338477960,1726687839208,-2144.44,0.00019178,2]
[338477961,1726687839218,-151.0,0.00019178,2]
[338477962,1726687839228,-151.0,0.00019178,2]
[338477963,1726687839238,-151.0,0.00019178,2]
[338477964,1726687839247,-151.0,0.00019178,2]
[338477965,1726687839257,-151.0,0.00019178,2]
[338477966,1726687839270,-151.0,0.00019178,2]
[338477967,1726687839280,-500.0,0.00019178,2]
[338477968,1726687839290,-500.0,0.00019178,2]
[338477969,1726687839299,-569.76034459,0.00019178,2]
[338477970,1726687839308,-500.0,0.00019178,2]
[338477971,1726687839318,-500.0,0.00019178,2]
[338477972,1726687839328,-554.7,0.00019178,2]
[338477973,1726687839337,-500.0,0.00019178,2]
[338477974,1726687839347,-500.0,0.00019178,2]
[338477975,1726687839357,-500.0,0.00019178,2]
[338477976,1726687839366,-1082.28,0.00019178,2]
[338477977,1726687839376,-500.0,0.00019178,2]
[338477978,1726687839386,-720.8,0.00019178,2]
[338477979,1726687839395,-500.0,0.00019178,2]
[338477980,1726687839405,-2506.53,0.00019178,2]
[338477981,1726687839414,-1720.06,0.00019178,2]
[338477982,1726687839424,-1002.49,0.00019178,2]
[338477983,1726687839433,-157.569046,0.00019178,2]
[338477984,1726687839442,-500.0,0.00019178,2]
[338477985,1726687839452,-1426.82,0.00019178,2]
[338477986,1726687839461,-157.569046,0.00019178,2]
[338477987,1726687839471,-157.569046,0.00019178,2]
[338477988,1726687839480,-157.569046,0.00019178,2]
[338477989,1726687839490,-157.569046,0.00019178,2]
[338477990,1726687839499,-157.569046,0.00019178,2]
[338477991,1726687839509,-500.0,0.00019178,2]
[338477992,1726687839521,-157.569046,0.00019178,2]
[338477993,1726687839530,-157.569046,0.00019178,2]
[338477994,1726687839540,-500.0,0.00019178,2]
[338477995,1726687839550,-500.0,0.00019178,2]
[338477996,1726687839560,-157.569046,0.00019178,2]
[338477997,1726687839569,-157.569046,0.00019178,2]
[338477998,1726687839578,-157.569046,0.00019178,2]
[338477999,1726687839587,-500.0,0.00019178,2]
[338478000,1726687839597,-157.569046,0.00019178,2]
[338478001,1726687839606,-157.569046,0.00019178,2]
[338478002,1726687839615,-157.569046,0.00019178,2]
[338478003,1726687839624,-500.0,0.00019178,2]
[338478004,1726687839633,-500.0,0.00019178,2]
[338478005,1726687839643,-500.0,0.00019178,2]
[338478006,1726687839654,-500.0,0.00019178,2]
[338478007,1726687839663,-500.0,0.00019178,2]
[338478008,1726687839673,-500.0,0.00019178,2]
[338478009,1726687839683,-500.0,0.00019178,2]
[338478010,1726687839692,-643.26,0.00019178,2]
[338478011,1726687839702,-1609.34,0.00019178,2]
[338478012,1726687839714,-829.89,0.00019178,2]
[338478013,1726687839724,-815.38,0.00019178,2]
[338478014,1726687839733,-500.0,0.00019178,2]
[338478015,1726687839742,-500.0,0.00019178,2]
[338478016,1726687839751,-500.0,0.00019178,2]
[338478017,1726687839761,-500.0,0.00019178,2]
[338478018,1726687839775,-500.0,0.00019178,2]
[338478019,1726687839784,-500.0,0.00019178,2]
[338478020,1726687839794,-600.47,0.00019178,2]
[338478021,1726687839803,-500.0,0.00019178,2]
[338478022,1726687839813,-2337.07,0.00019178,2]
[338478023,1726687839823,-500.0,0.00019178,2]
[338478024,1726687839832,-500.0,0.00019178,2]
[338478025,1726687839841,-392.2508556,0.00019178,2]
[338478026,1726687839851,-500.0,0.00019178,2]
[338478027,1726687839861,-1959.35,0.00019178,2]
[338478028,1726687839870,-500.0,0.00019178,2]
[338478029,1726687839880,-500.0,0.00019178,2]
[338478030,1726687839889,-500.0,0.00019178,2]
[338478031,1726687839899,-500.0,0.00019178,2]
[338478032,1726687839908,-500.0,0.00019178,2]
[338478033,1726687839918,-500.0,0.00019178,2]
[338478034,1726687839928,-3834.09,0.00019178,2]
[338478035,1726687839938,-500.0,0.00019178,2]
[338478036,1726687839947,-912.11,0.00019178,2]
[338478037,1726687839957,-3426.28,0.00019178,2]
[338478038,1726687839967,-500.0,0.00019178,2]
[338478039,1726687839977,-500.0,0.00019178,2]
[338478040,1726687839987,-500.0,0.00019178,2]
[338478041,1726687839996,-335.43192672,0.00019178,2]
[338478042,1726687840006,-500.0,0.00019178,2]
[338478043,1726687840019,-1011.61,0.00019178,2]
[338478044,1726687840028,-1207.09,0.00019178,2]
[338478045,1726687840038,-610.91,0.00019178,2]
[338478046,1726687840050,-500.0,0.00019178,2]
[338478047,1726687840062,-713.98,0.00019178,2]
[338478048,1726687840071,-2468.02,0.00019178,2]
[338478049,1726687840081,-500.0,0.00019178,2]
[338478050,1726687840092,-500.0,0.00019178,2]
[338478051,1726687840102,-500.0,0.00019178,2]
[338478052,1726687840111,-500.0,0.00019178,2]
[338478053,1726687840121,-500.0,0.00019178,2]
[338478054,1726687840132,-697.2,0.00019178,2]
[338478055,1726687840142,-1939.13,0.00019178,2]
[338478056,1726687840152,-1807.79,0.00019178,2]
[338478057,1726687840161,-903.77,0.00019178,2]
[338478058,1726687840171,-379.29274194,0.00019178,2]
[338478059,1726687840180,-903.77,0.00019178,2]
[338478060,1726687840190,-903.77,0.00019178,2]
[338478061,1726687840200,-903.77,0.00019178,2]
[338478062,1726687840210,-903.77,0.00019178,2]
[338478063,1726687840220,-903.77,0.00019178,2]
[338478064,1726687840229,-903.77,0.00019178,2]
[338478065,1726687840239,-903.77,0.00019178,2]
[338478066,1726687840249,-903.77,0.00019178,2]
[338478067,1726687840258,-903.77,0.00019178,2]
[338478068,1726687840273,-903.77,0.00019178,2]
[338478069,1726687840284,-903.77,0.00019178,2]
[338478070,1726687840293,-903.77,0.00019178,2]
[338478071,1726687840303,-903.77,0.00019178,2]
[338478072,1726687840312,-903.77,0.00019178,2]
[338478073,1726687840322,-903.77,0.00019178,2]
[338478074,1726687840332,-903.77,0.00019178,2]
[338478075,1726687840342,-903.77,0.00019178,2]
[338478076,1726687840352,-903.77,0.00019178,2]
[338478077,1726687840361,-192.156737,0.00019178,2]
[338478078,1726687840371,-903.77,0.00019178,2]
[338478079,1726687840380,-903.77,0.00019178,2]
[338478080,1726687840389,-903.77,0.00019178,2]
[338478081,1726687840399,-903.77,0.00019178,2]
[338478082,1726687840408,-903.91439044,0.00019178,2]
[338478083,1726687840417,-1064.56,0.00019178,2]
[338478084,1726687840426,-804.47,0.00019178,2]
[338478085,1726687840436,-500.0,0.00019178,2]
[338478086,1726687840445,-500.0,0.00019178,2]
[338478087,1726687840454,-545.26,0.00019178,2]
[338478088,1726687840463,-355.53956789,0.00019178,2]
[338478089,1726687840473,-500.0,0.00019178,2]
[338478090,1726687840483,-1554.54,0.00019178,2]
[338478091,1726687840492,-1000.0,0.00019178,2]
[338478092,1726687840502,-500.0,0.00019178,2]
[338478093,1726687840511,-500.0,0.00019178,2]
[338478094,1726687840528,-580.59,0.00019178,2]
[338478095,1726687840541,-1360.27,0.00019178,2]
[338478096,1726687840550,-500.0,0.00019178,2]
[338478097,1726687840560,-500.0,0.00019178,2]
[338478098,1726687840569,-805.67,0.00019178,2]
[338478099,1726687840579,-500.0,0.00019178,2]
[338478100,1726687840588,-500.0,0.00019178,2]
[338478101,1726687840597,-500.0,0.00019178,2]
[338478102,1726687840607,-1099.26,0.00019178,2]
[338478103,1726687840616,-500.0,0.00019178,2]
[338478104,1726687840631,-500.0,0.00019178,2]
[338478105,1726687840641,-151.0,0.00019178,2]
[338478106,1726687840650,-516.1,0.00019178,2]
[338478107,1726687840660,-151.0,0.00019178,2]
[338478108,1726687840670,-840.17,0.00019178,2]
[338478109,1726687840679,-151.0,0.00019178,2]
[338478110,1726687840689,-697.69,0.00019178,2]
[338478111,1726687840698,-151.0,0.00019178,2]
[338478112,1726687840708,-151.0,0.00019178,2]
[338478113,1726687840718,-151.0,0.00019178,2]
[338478114,1726687840727,-151.0,0.00019178,2]
[338478115,1726687840737,-151.0,0.00019178,2]
[338478116,1726687840746,-500.0,0.00019178,2]
[338478117,1726687840757,-734.72,0.00019178,2]
[338478118,1726687840772,-500.0,0.00019178,2]
[338478119,1726687840783,-500.0,0.00019178,2]
[338478120,1726687840792,-2225.8,0.00019178,2]
[338478121,1726687840802,-2666.6,0.00019178,2]
[338478122,1726687840811,-500.0,0.00019178,2]
[338478123,1726687840820,-1122.07,0.00019178,2]
[338478124,1726687840831,-535.96,0.00019178,2]
[338478125,1726687840841,-500.0,0.00019178,2]
[338478126,1726687840850,-2153.34,0.00019178,2]
[338478127,1726687840859,-500.0,0.00019178,2]
[338478129,1726687840869,-2019.06,0.00019178,2]
[338478131,1726687840879,-500.0,0.00019178,2]
[338478133,1726687840889,-500.0,0.00019178,2]
[338478135,1726687840898,-532.59370573,0.00019178,2]
[338478136,1726687840907,-500.0,0.00019178,2]
[338478138,1726687840917,-500.0,0.00019178,2]
[338478140,1726687840926,-500.0,0.00019178,2]
[338478142,1726687840936,-511.76,0.00019178,2]
[338478144,1726687840946,-1510.796918,0.00019178,2]
[338478145,1726687840955,-1510.796918,0.00019178,2]
[338478146,1726687840965,-1510.796918,0.00019178,2]
[338478147,1726687840974,-1510.796918,0.00019178,2]
[338478149,1726687840984,-1510.796918,0.00019178,2]
[338478151,1726687840993,-582.38,0.00019178,2]
[338478153,1726687841003,-1510.796918,0.00019178,2]
[338478155,1726687841013,-1510.796918,0.00019178,2]
[338478157,1726687841177,-1510.796918,0.00019178,2]
[338478158,1726687841187,-1254.96,0.00019178,2]
[338478159,1726687841197,-500.0,0.00019178,2]
[338478161,1726687841207,-500.0,0.00019178,2]
[338478163,1726687841217,-585.59,0.00019178,2]
[338478165,1726687841226,-500.0,0.00019178,2]
[338478166,1726687841236,-324.92963086,0.00019178,2]
[338478168,1726687841245,-500.0,0.00019178,2]
[338478169,1726687841255,-1131.33,0.00019178,2]
[338478171,1726687841264,-862.56,0.00019178,2]
[338478172,1726687841278,-500.0,0.00019178,2]
[338478173,1726687841288,-3133.3,0.00019178,2]
[338478174,1726687841298,-500.0,0.00019178,2]
[338478175,1726687841307,-500.0,0.00019178,2]
[338478176,1726687841316,-500.0,0.00019178,2]
[338478177,1726687841326,-500.0,0.00019178,2]
[338478178,1726687841335,-500.0,0.00019178,2]